bitfinex/quotes_SOLUSD_20241225
["timestamp","ask_amount","ask_price","bid_price","bid_amount"]
[1735130485471,12.7407,196.23,196.11,23.902374]
[1735130486364,12.7382,196.26,196.11,23.902374]
[1735130486572,20.0,196.23,196.11,0.12549]
[1735130486775,20.0,196.22,196.1,6.5126]
[1735130487583,20.0,196.22,196.11,0.12549]
[1735130487761,32.7411,196.22,196.11,0.12549]
[1735130500386,32.7411,196.22,196.11,23.902374]
[1735130500689,32.7411,196.22,196.11,0.12549]
[1735130501569,32.7411,196.22,196.11,23.902374]
[1735130502156,12.7411,196.22,196.13,0.12549]
[1735130502788,20.0,196.23,196.13,0.12549]
[1735130503669,20.0,196.23,196.13,23.902374]
[1735130504879,12.7382,196.26,196.15,23.902374]
[1735130505069,12.7382,196.26,196.19,0.12549]
[1735130506479,29.49689252,196.3,196.19,0.12549]
[1735130506779,20.0,196.26,196.19,0.12549]
[1735130507085,20.0,196.26,196.18,6.4174]
[1735130508384,12.7388,196.25,196.18,6.4174]
[1735130512887,20.0,196.26,196.19,0.12549]
[1735130519998,20.0,196.26,196.18,6.4174]
[1735130520680,20.0,196.22,196.18,6.4174]
[1735130521398,32.741,196.22,196.18,6.4174]
[1735130524477,20.0,196.22,196.18,6.4174]
[1735130526203,20.0,196.23,196.18,6.4174]
[1735130526378,20.0,196.23,196.16,1.5028]
[1735130527289,12.7408,196.22,196.16,1.5028]
[1735130528602,20.0,196.23,196.16,1.5028]
[1735130528903,12.739,196.25,196.17,0.12549]
[1735130529210,7.98459244,196.26,196.19,0.12549]
[1735130529706,20.72169244,196.28,196.19,0.12549]
[1735130530402,12.7371,196.28,196.19,0.12549]
[1735130534807,27.50542087,196.3,196.19,0.12549]
[1735130535309,35.49001331,196.3,196.19,0.12549]
[1735130535493,48.22601331,196.3,196.19,0.12549]
[1735130536296,40.24142087,196.3,196.19,0.12549]
[1735130540614,32.738,196.27,196.18,6.6346]
[1735130541003,23.776884,196.26,196.18,6.6346]
[1735130541202,20.0,196.23,196.18,6.6346]
[1735130542027,32.7407,196.23,196.18,6.6346]
[1735130542511,20.0,196.22,196.18,6.6346]
[1735130549618,12.7414,196.21,196.18,6.6346]
[1735130553917,20.0,196.22,196.18,6.6346]
[1735130555821,12.7395,196.24,196.18,6.6346]
[1735130556013,20.72239244,196.27,196.19,0.12549]
[1735130557111,12.7378,196.27,196.19,0.12549]
[1735130561811,7.98459244,196.3,196.19,23.902374]
[1735130562122,7.98459244,196.3,196.21,0.12549]
[1735130562830,20.73750663,196.32,196.21,0.12549]
[1735130563427,20.0,196.29,196.21,0.12549]
[1735130565743,20.73750663,196.32,196.23,0.12549]
[1735130566032,27.50019322,196.33,196.25,23.902374]
[1735130566240,27.50019322,196.33,196.25,24.66646005]
[1735130566816,12.7316,196.37,196.25,24.66646005]
[1735130567618,7.98459244,196.39,196.27,6.27459]
[1735130568113,7.98459244,196.39,196.29,0.12549]
[1735130568325,7.98459244,196.4,196.31,0.12549]
[1735130568528,7.98459244,196.4,196.33,0.12549]
[1735130569430,16.75189252,196.43,196.33,0.12549]
[1735130570434,12.7273,196.43,196.33,0.12549]
[1735130573624,20.0,196.4,196.32,1.5037]
[1735130574643,25.4517,196.45,196.32,1.5037]
[1735130574644,20.0,196.42,196.32,1.5037]
[1735130574830,20.0,196.41,196.32,1.5037]
[1735130576047,12.7291,196.4,196.32,1.5037]
[1735130580446,12.7291,196.4,196.33,0.12549]
[1735130580751,20.0,196.4,196.33,0.12549]
[1735130580949,12.7273,196.43,196.33,0.12549]
[1735130583830,12.7253,196.46,196.33,23.902374]
[1735130584150,12.7253,196.46,196.35,0.12549]
[1735130585553,12.7253,196.46,196.35,23.902374]
[1735130586350,12.7253,196.46,196.37,0.12549]
[1735130587053,7.65570403,196.51,196.37,0.12549]
[1735130587054,20.0,196.48,196.37,0.12549]
[1735130587257,20.0,196.47,196.37,0.12549]
[1735130588553,20.0,196.48,196.37,0.12549]
[1735130588858,20.0,196.47,196.37,0.12549]
[1735130590741,12.7252,196.46,196.37,0.12549]
[1735130591861,20.0,196.42,196.36,6.4365]
[1735130592759,20.0,196.42,196.32,6.56199]
[1735130592947,20.0,196.38,196.26,1.5416]
[1735130593260,20.0,196.38,196.27,6.3195]
[1735130593853,20.0,196.38,196.28,0.12549]
[1735130594063,12.731,196.37,196.28,0.12549]
[1735130610875,12.731,196.37,196.27,6.3195]
[1735130611276,12.731,196.37,196.28,0.12549]
[1735130618360,12.731,196.37,196.27,6.3195]
[1735130618796,12.731,196.37,196.28,0.12549]
[1735130640687,12.731,196.37,196.27,6.3195]
[1735130641200,20.0,196.34,196.28,0.12549]
[1735130648205,20.0,196.32,196.27,6.3195]
[1735130648603,20.0,196.31,196.23,6.5748]
[1735130649313,7.98459244,196.32,196.23,6.5748]
[1735130649314,20.0,196.29,196.23,6.5748]
[1735130650018,12.7369,196.28,196.23,6.5748]
[1735130654633,7.98459244,196.32,196.23,6.5748]
[1735130654917,1.46818489,196.34,196.32,0.12549]
[1735130655097,63.87673958,196.43,196.34,4.22549]
[1735130655304,79.638732,196.45,196.34,20.12549]
[1735130655617,2.05397603,196.51,196.42,5.5]
[1735130655914,92.19655928,196.52,196.4,0.12549]
[1735130656089,92.19655928,196.52,196.43,0.12549]
[1735130656294,33.96995578,196.42,196.41,14.44637634]
[1735130656597,92.19655928,196.52,196.44,20.0]
[1735130656796,92.19655928,196.52,196.45,20.0]
[1735130656998,31.58486305,196.73,196.45,20.0]
[1735130657196,12.7067,196.75,196.46,1.12103975]
[1735130657623,25.62947685,196.74,196.5,27.91884922]
[1735130657799,25.62947685,196.74,196.51,24.53992056]
[1735130658007,12.7036,196.8,196.54,20.0]
[1735130658205,6.4346,196.81,196.58,20.0]
[1735130658394,6.4346,196.81,196.59,0.12549]
[1735130658596,44.5425,196.81,196.52,20.0]
[1735130658894,70.2404524,196.81,196.54,7.91884922]
[1735130659098,44.8352524,196.81,196.57,0.12549]
[1735130659309,19.1373,196.81,196.57,0.8882111]
[1735130659698,20.0,196.77,196.57,0.8882111]
[1735130659895,25.82361875,196.77,196.57,0.8882111]
[1735130660309,20.0,196.68,196.57,0.8882111]
[1735130660527,1.5818,196.73,196.54,7.91884922]
[1735130660921,0.12549,196.72,196.5,7.91884922]
[1735130661119,14.2895,196.73,196.5,7.91884922]
[1735130661120,0.12549,196.69,196.5,7.91884922]
[1735130661305,20.0,196.65,196.5,7.91884922]
[1735130661645,20.0,196.65,196.47,7.91884922]
[1735130661825,23.776884,196.6,196.47,7.91884922]
[1735130662023,23.776884,196.56,196.47,7.91884922]
[1735130662228,23.776884,196.56,196.43,7.91884922]
[1735130662408,27.45935495,196.64,196.44,13.48983423]
[1735130662747,27.45935495,196.64,196.44,38.94283423]
[1735130662909,27.45935495,196.64,196.45,0.12549]
[1735130663113,27.45935495,196.64,196.47,20.12549]
[1735130663330,27.45935495,196.64,196.49,20.12549]
[1735130663642,1.5818,196.73,196.56,0.12549]
[1735130664319,1.5818,196.73,196.56,8.04433922]
[1735130664535,0.12549,196.72,196.56,8.04433922]
[1735130664733,12.83389,196.72,196.54,7.91884922]
[1735130665208,0.12549,196.68,196.54,7.91884922]
[1735130665401,20.0,196.65,196.49,0.12549]
[1735130665630,20.0,196.61,196.49,7.91884922]
[1735130665931,19.00276222,196.61,196.5,7.91884922]
[1735130666134,12.7114,196.68,196.49,7.91884922]
[1735130666435,12.7114,196.68,196.48,23.776884]
[1735130666727,0.12549,196.67,196.47,7.91884922]
[1735130666928,0.12549,196.65,196.47,7.91884922]
[1735130667147,6.2737,196.64,196.47,7.91884922]
[1735130667320,27.26267237,196.64,196.47,7.91884922]
[1735130667517,27.26267237,196.64,196.48,0.12549]
[1735130668107,20.0,196.6,196.43,0.12549]
[1735130668307,20.0,196.6,196.49,0.12549]
[1735130669215,20.0,196.6,196.46,0.12549]
[1735130670935,20.0,196.56,196.39,13.85040092]
[1735130671152,20.0,196.56,196.4,0.12549]
[1735130671512,20.0,196.56,196.39,13.85040092]
[1735130671513,20.0,196.56,196.39,1.12100092]
[1735130671813,20.0,196.56,196.39,0.3578]
[1735130672540,23.776884,196.55,196.35,0.7635538]
[1735130672844,20.0,196.48,196.3,0.76366501]
[1735130673016,20.0,196.48,196.27,0.7638281]
[1735130673528,20.0,196.48,196.28,0.12549]
[1735130673844,20.0,196.48,196.3,0.12549]
[1735130674014,20.0,196.48,196.32,0.12549]
[1735130674217,20.0,196.48,196.38,0.12549]
[1735130674423,20.0,196.48,196.4,0.12549]
[1735130675334,6.2737,196.51,196.4,0.12549]
[1735130675530,6.2737,196.51,196.4,0.88898584]
[1735130675845,27.47056427,196.57,196.4,0.88898584]
[1735130675846,33.64756427,196.57,196.42,0.12549]
[1735130676053,33.64756427,196.57,196.44,0.12549]
[1735130676254,33.64756427,196.57,196.46,0.12549]
[1735130680145,6.177,196.63,196.5,0.12549]
[1735130681839,20.0,196.6,196.5,0.12549]
[1735130682040,6.177,196.63,196.5,0.12549]
[1735130683947,6.177,196.63,196.53,0.12549]
[1735130684246,6.177,196.63,196.53,23.902374]
[1735130685643,1.5112,196.65,196.53,23.902374]
[1735130685845,6.6347,196.69,196.57,23.902374]
[1735130686145,1.6583,196.71,196.57,24.66514678]
[1735130687234,1.6583,196.71,196.61,23.902374]
[1735130687451,6.6347,196.74,196.61,23.902374]
[1735130687758,10.0,196.78,196.67,23.902374]
[1735130688333,10.0,196.78,196.64,0.3578]
[1735130688739,10.0,196.78,196.57,24.260174]
[1735130689066,10.0,196.78,196.63,23.902374]
[1735130689230,10.0,196.78,196.67,23.902374]
[1735130689432,10.0,196.78,196.67,0.12549]
[1735130689835,10.0,196.78,196.62,23.902374]
[1735130690054,10.0,196.78,196.66,0.12549]
[1735130690257,10.0,196.78,196.66,23.902374]
[1735130692428,10.0,196.78,196.72,23.902374]
[1735130692655,10.0,196.78,196.72,24.66461577]
[1735130692954,10.0,196.78,196.76,23.902374]
[1735130693161,10.0,196.78,196.76,24.66440323]
[1735130693334,12.6967,196.91,196.76,24.66440323]
[1735130693736,12.6967,196.91,196.76,23.902374]
[1735130694365,20.0,196.88,196.76,23.902374]
[1735130694729,20.0,196.88,196.71,0.76217799]
[1735130694974,20.0,196.88,196.73,20.0]
[1735130695156,20.0,196.88,196.75,0.12549]
[1735130695664,20.0,196.88,196.75,20.12549]
[1735130695851,20.0,196.89,196.75,20.12549]
[1735130696054,12.6981,196.88,196.75,20.12549]
[1735130696457,20.0,196.85,196.72,23.776884]
[1735130696968,6.0446,196.83,196.67,1.12010472]
[1735130697337,6.0446,196.83,196.68,0.12549]
[1735130698167,6.0446,196.83,196.68,23.902374]
[1735130698592,6.0446,196.83,196.7,23.902374]
[1735130698969,12.7019,196.82,196.68,20.0]
[1735130699583,12.7019,196.82,196.68,20.76239509]
[1735130699873,12.7019,196.82,196.69,0.12549]
[1735130700061,12.7019,196.82,196.69,23.902374]
[1735130700385,20.0,196.79,196.69,23.776884]
[1735130700695,20.0,196.79,196.7,0.12549]
[1735130700901,12.7019,196.82,196.7,0.12549]
[1735130702491,6.0446,196.83,196.7,0.12549]
[1735130702695,6.0446,196.83,196.72,0.12549]
[1735130703090,18.746,196.83,196.72,0.12549]
[1735130704586,21.6171,196.84,196.72,0.12549]
[1735130706806,34.3179,196.84,196.72,0.12549]
[1735130707374,21.6171,196.84,196.72,0.12549]
[1735130707578,20.0,196.84,196.72,0.12549]
[1735130707797,18.8914,196.87,196.74,20.0]
[1735130707994,18.8914,196.87,196.75,23.776884]
[1735130708299,18.8914,196.87,196.76,0.12549]
[1735130709505,20.0,196.88,196.76,0.12549]
[1735130709668,20.0,196.88,196.75,24.53914114]
[1735130709870,20.0,196.88,196.75,23.776884]
[1735130710305,20.0,196.91,196.76,0.12549]
[1735130711211,38.0826,196.94,196.76,0.12549]
[1735130711514,12.6942,196.94,196.79,23.902374]
[1735130712976,27.41752867,196.95,196.83,23.902374]
[1735130713381,40.11112867,196.95,196.83,23.902374]
[1735130713592,40.11112867,196.95,196.77,1.11981765]
[1735130713793,40.11112867,196.95,196.78,43.776884]
[1735130714029,40.11112867,196.95,196.79,0.12549]
[1735130714403,20.0,196.92,196.81,23.902374]
[1735130715227,27.41752867,196.95,196.83,0.12549]
[1735130715389,27.41752867,196.95,196.85,23.902374]
[1735130716426,6.3812,197.01,196.87,23.902374]
[1735130716832,12.6903,197.0,196.87,23.902374]
[1735130716991,12.6903,197.0,196.81,23.776884]
[1735130717323,12.6903,197.0,196.84,23.776884]
[1735130717819,20.0,196.96,196.77,0.3578]
[1735130718431,20.0,196.96,196.78,0.12549]
[1735130718639,20.0,196.92,196.77,0.3578]
[1735130718927,21.6061,196.92,196.77,0.3578]
[1735130719103,21.6061,196.92,196.78,0.12549]
[1735130719437,21.6061,196.92,196.77,0.3578]
[1735130719932,20.0,196.88,196.77,0.3578]
[1735130720289,20.0,196.88,196.73,0.76203074]
[1735130720502,20.0,196.86,196.72,0.3578]
[1735130721019,20.0,196.86,196.73,0.12549]
[1735130721215,20.0,196.86,196.72,0.3578]
[1735130721530,20.0,196.86,196.73,0.12549]
[1735130721834,12.7,196.85,196.73,0.12549]
[1735130722291,19.2645,196.89,196.77,23.902374]
[1735130722498,6.5666,196.89,196.77,23.902374]
[1735130722717,32.6968,196.9,196.77,23.902374]
[1735130723093,32.6968,196.9,196.77,24.66447297]
[1735130723324,1.6061,196.92,196.77,24.66447297]
[1735130723724,27.42306239,196.93,196.77,24.66447297]
[1735130723725,27.42306239,196.93,196.81,23.902374]
[1735130724239,1.6061,196.97,196.81,23.902374]
[1735130724406,25.3858,196.96,196.81,23.776884]
[1735130725440,25.3858,196.96,196.82,0.12549]
[1735130725740,20.0,196.93,196.82,0.12549]
[1735130726626,25.3858,196.96,196.82,0.12549]
[1735130726627,20.0,196.89,196.82,0.12549]
[1735130729250,12.6932,196.96,196.82,0.12549]
[1735130729455,20.0,196.93,196.82,0.12549]
[1735130730140,12.6932,196.96,196.86,0.12549]
[1735130730446,19.2576,196.99,196.86,0.12549]
[1735130731125,3.6146361,197.02,196.86,0.12549]
[1735130731327,3.6146361,197.02,196.88,0.12549]
[1735130732650,3.6146361,197.02,196.88,43.902374]
[1735130733726,1.6061,197.02,196.88,43.902374]
[1735130733925,1.6061,197.02,196.88,44.66401126]
[1735130734123,20.0,197.0,196.88,44.66401126]
[1735130737277,20.0,197.0,196.82,0.3578]
[1735130737452,20.0,197.0,196.83,0.76176072]
[1735130737650,20.0,197.0,196.82,0.3578]
[1735130738050,20.0,196.95,196.79,7.91884922]
[1735130738552,1.516,196.99,196.8,0.76202927]
[1735130739044,1.516,196.99,196.81,0.12549]
[1735130739271,20.0,196.95,196.83,20.0]
[1735130739480,14.70192368,197.02,196.85,0.12549]
[1735130739791,12.6896,197.02,196.87,0.12549]
[1735130740278,12.6896,197.02,196.87,23.902374]
[1735130740865,12.6896,197.02,196.91,23.902374]
[1735130741677,1.99698696,197.05,196.93,23.902374]
[1735130741883,12.687,197.06,196.93,23.902374]
[1735130742055,20.0,197.03,196.93,23.902374]
[1735130742380,12.687,197.06,196.93,23.902374]
[1735130742764,14.72233978,197.07,196.95,0.12549]
[1735130742960,7.7697,197.15,196.96,23.776884]
[1735130743159,7.7697,197.15,196.98,23.776884]
[1735130743474,7.7697,197.15,196.97,0.76126407]
[1735130743475,7.7697,197.15,196.96,23.776884]
[1735130743658,7.7697,197.15,196.95,23.776884]
[1735130743854,7.7697,197.15,196.97,23.902374]
[1735130744359,20.0,197.12,196.97,23.902374]
[1735130744572,20.0,197.08,196.97,23.902374]
[1735130745078,32.6853,197.08,196.94,0.3578]
[1735130745480,7.7697,197.07,196.89,0.3578]
[1735130745779,20.0,197.04,196.89,0.3578]
[1735130746559,20.0,197.0,196.89,0.3578]
[1735130747160,20.0,197.0,196.9,0.12549]
[1735130747359,20.0,197.0,196.84,0.3578]
[1735130747862,20.0,197.0,196.85,0.12549]
[1735130748357,20.0,197.0,196.84,0.3578]
[1735130748559,20.0,196.99,196.84,0.3578]
[1735130749169,20.0,197.0,196.85,0.12549]
[1735130750380,12.6909,196.99,196.85,0.12549]
[1735130750694,20.0,196.96,196.85,0.12549]
[1735130754081,20.0,196.99,196.85,0.12549]
[1735130754258,20.0,196.99,196.84,0.3578]
[1735130754700,20.0,196.99,196.79,1.11960667]
[1735130754701,20.0,196.95,196.79,1.11960667]
[1735130754985,20.0,196.94,196.79,0.3578]
[1735130755188,20.0,196.94,196.8,0.12549]
[1735130755783,20.0,196.95,196.8,0.12549]
[1735130755977,20.0,196.91,196.79,0.3578]
[1735130756563,7.7302,196.9,196.72,0.76212351]
[1735130756865,7.7302,196.9,196.68,7.91884922]
[1735130756866,20.0,196.86,196.68,7.91884922]
[1735130757066,31.08275942,196.89,196.68,7.91884922]
[1735130757067,23.776884,196.77,196.68,7.91884922]
[1735130757304,7.7302,196.81,196.65,7.91884922]
[1735130757585,20.0,196.73,196.65,7.91884922]
[1735130757763,21.595,196.72,196.63,15.83769844]
[1735130757966,20.0,196.68,196.63,10.90479844]
[1735130758494,20.0,196.68,196.6,63.35079376]
[1735130758495,15.83396479,196.67,196.44,30.28540831]
[1735130758697,10.50764658,196.66,196.44,5.108]
[1735130758870,10.50764658,196.66,196.44,7.14550412]
[1735130759197,11.27084532,196.65,196.45,5.06268145]
[1735130759382,11.27084532,196.65,196.39,22.38959729]
[1735130759581,11.27084532,196.65,196.36,7.36067736]
[1735130759582,7.92267186,196.49,196.44,30.0]
[1735130759793,7.92267186,196.49,196.45,0.76295242]
[1735130760180,7.92267186,196.49,196.46,0.12549]
[1735130760385,7.92267186,196.49,196.47,0.76305796]
[1735130760583,7.79727186,196.49,196.47,0.76305796]
[1735130760797,7.76829646,196.59,196.47,0.76305796]
[1735130761100,0.76319874,196.59,196.43,0.76308128]
[1735130761273,0.76319874,196.59,196.37,0.76329856]
[1735130761869,20.0,196.57,196.37,0.76329856]
[1735130762086,31.69420459,196.51,196.37,0.76329856]
[1735130762330,0.76319874,196.5,196.32,0.76354368]
[1735130762598,11.2460569,196.5,196.32,0.76354368]
[1735130762804,20.0,196.47,196.32,0.76354368]
[1735130763000,31.69420459,196.51,196.32,0.76354368]
[1735130763001,31.2460569,196.46,196.32,0.76354368]
[1735130763199,31.2460569,196.46,196.28,0.76370781]
[1735130763503,10.48285816,196.45,196.28,0.76370781]
[1735130763797,31.69420459,196.34,196.29,12.7362]
[1735130764002,31.69420459,196.34,196.3,0.88917793]
[1735130764190,31.69420459,196.34,196.33,0.12549]
[1735130764792,13.97714422,196.45,196.33,0.12549]
[1735130765105,20.0,196.51,196.38,20.0]
[1735130765315,0.76319874,196.5,196.39,23.776884]
[1735130765480,0.76319874,196.5,196.4,0.12549]
[1735130765795,47.1601813,196.41,196.37,23.776884]
[1735130765982,47.1601813,196.41,196.38,0.38210864]
[1735130766304,34.84237116,196.4,196.38,0.38210864]
[1735130766603,3.46627332,196.39,196.38,0.38210864]
[1735130767107,31.37609784,196.4,196.38,0.38210864]
[1735130767604,31.37609784,196.4,196.37,23.776884]
[1735130768206,31.37609784,196.4,196.38,0.12549]
[1735130768511,3.46627332,196.44,196.38,0.50762689]
[1735130769012,3.46627332,196.43,196.4,20.0]
[1735130769211,3.46627332,196.43,196.42,0.12549]
[1735130769572,3.46627332,196.44,196.42,0.12549]
[1735130770299,3.46627332,196.43,196.37,0.38192793]
[1735130771003,31.37609784,196.46,196.37,0.38192793]
[1735130771903,20.0,196.5,196.37,0.38192793]
[1735130772083,31.37609784,196.53,196.38,12.7304]
[1735130772291,31.37609784,196.53,196.39,0.38135037]
[1735130772491,0.95411925,196.52,196.39,0.38135037]
[1735130772989,3.43295287,196.51,196.4,0.12549]
[1735130773173,3.43295287,196.51,196.42,0.12549]
[1735130773379,23.776884,196.52,196.44,0.12549]
[1735130774308,23.776884,196.53,196.44,0.12549]
[1735130774496,23.776884,196.51,196.44,0.12549]
[1735130775097,23.776884,196.53,196.46,0.12549]
[1735130775622,31.54817395,196.53,196.46,0.12549]
[1735130775824,31.54817395,196.53,196.38,12.7304]
[1735130776137,23.776884,196.51,196.35,23.776884]
[1735130776298,0.95432163,196.52,196.35,23.776884]
[1735130776505,20.0,196.5,196.35,23.776884]
[1735130777732,24.73109655,196.49,196.34,12.733]
[1735130778035,20.0,196.46,196.3,12.7352]
[1735130778207,23.776884,196.45,196.3,12.7352]
[1735130778402,23.776884,196.43,196.31,0.12549]
[1735130778623,23.776884,196.43,196.26,13.977144]
[1735130778624,0.95460036,196.42,196.26,12.7376]
[1735130778797,20.0,196.46,196.29,30.0]
[1735130779007,23.776884,196.5,196.34,0.12549]
[1735130779418,0.95423869,196.49,196.34,0.12549]
[1735130779739,23.776884,196.5,196.31,4.78959729]
[1735130780115,23.776884,196.48,196.36,0.12549]
[1735130780915,23.776884,196.48,196.32,12.7343]
[1735130781099,20.0,196.41,196.28,12.7365]
[1735130781305,23.776884,196.4,196.28,12.7365]
[1735130781614,23.776884,196.4,196.29,0.12549]
[1735130782431,24.73161477,196.4,196.24,12.739]
[1735130782636,24.73161477,196.4,196.21,2.05597793]
[1735130782802,23.776884,196.36,196.2,33.132086]
[1735130783196,24.73179996,196.36,196.2,33.132086]
[1735130783401,24.73179996,196.36,196.2,12.7415]
[1735130783737,24.73179996,196.36,195.9,68.7906189]
[1735130783738,23.776884,196.32,196.16,12.7441]
[1735130784036,24.73207634,196.32,196.16,12.7441]
[1735130784203,24.73207634,196.32,196.17,0.12549]
[1735130784400,23.776884,196.28,196.12,12.7468]
[1735130784810,23.776884,196.26,196.12,12.7468]
[1735130785199,43.776884,196.32,196.12,12.7468]
[1735130785400,23.776884,196.3,196.13,0.12549]
[1735130785601,23.776884,196.28,196.12,12.7468]
[1735130786735,23.776884,196.28,196.15,20.0]
[1735130786906,20.0,196.32,196.17,20.0]
[1735130787111,1.5729,196.33,196.18,0.12549]
[1735130787299,0.95511897,196.32,196.17,20.0]
[1735130787502,1.5729,196.33,196.19,0.12549]
[1735130787925,1.5729,196.33,196.16,20.0]
[1735130788631,0.95519262,196.32,196.16,20.0]
[1735130788836,23.776884,196.32,196.16,20.0]
[1735130789020,23.776884,196.32,196.17,42.744]
[1735130789218,1.5729,196.33,196.17,42.744]
[1735130789419,26.3047151,196.39,196.17,68.232]
[1735130789631,26.3047151,196.39,196.17,38.232]
[1735130789845,26.3047151,196.39,196.17,68.232]
[1735130790004,2.5278311,196.39,196.21,20.12549]
[1735130790509,20.0,196.37,196.21,32.86659]
[1735130791615,20.0,196.37,196.23,0.12549]
[1735130792227,1.5729,196.39,196.28,0.12549]
[1735130792751,6.96458603,196.46,196.32,0.12549]
[1735130792927,6.0099,196.46,196.32,20.12549]
[1735130793114,6.0099,196.46,196.32,43.902374]
[1735130793442,6.0099,196.46,196.32,20.12549]
[1735130793813,0.95447622,196.45,196.3,32.735]
[1735130794049,0.95447622,196.45,196.31,0.12549]
[1735130794347,6.0099,196.46,196.31,20.12549]
[1735130794514,6.0099,196.46,196.34,0.12549]
[1735130795027,6.0099,196.46,196.33,0.12549]
[1735130795350,6.0099,196.46,196.33,12.7336]
[1735130795511,1.5729,196.47,196.34,0.12549]
[1735130795707,0.95440673,196.46,196.34,0.12549]
[1735130795925,1.5729,196.47,196.34,0.12549]
[1735130796162,1.5729,196.47,196.33,0.12549]
[1735130796349,1.5729,196.47,196.35,0.12549]
[1735130796558,2.52724581,196.47,196.34,19.52549]
[1735130796733,1.5729,196.47,196.34,19.52549]
[1735130797240,2.52729683,196.47,196.34,19.52549]
[1735130797633,23.776884,196.46,196.34,19.52549]
[1735130798228,23.776884,196.46,196.32,12.7342]
[1735130798855,20.0,196.43,196.28,12.7363]
[1735130799030,24.73151387,196.42,196.28,12.7363]
[1735130799230,24.73151387,196.42,196.24,12.739]
[1735130799559,20.0,196.39,196.25,0.12549]
[1735130799942,31.2726871,196.38,196.21,43.3214]
[1735130800145,31.2726871,196.38,196.21,12.7414]
[1735130800335,25.424484,196.34,196.21,2.08100784]
[1735130800536,25.424484,196.34,196.17,12.7435]
[1735130800730,25.424484,196.34,196.18,0.12549]
[1735130801458,25.424484,196.34,196.17,43.3235]
[1735130801656,25.424484,196.34,196.2,20.0]
[1735130801657,23.776884,196.32,196.2,20.0]
[1735130803059,23.776884,196.32,196.21,0.12549]
[1735130803760,23.776884,196.33,196.21,0.12549]
[1735130805058,20.0,196.3,196.16,2.0035006]
[1735130805241,23.776884,196.29,196.14,12.7459]
[1735130805647,23.776884,196.27,196.11,12.7478]
[1735130805867,23.776884,196.25,196.11,12.7478]
[1735130806070,23.776884,196.25,196.12,0.12549]
[1735130806238,23.776884,196.26,196.11,12.7478]
[1735130806958,23.776884,196.27,196.14,0.12549]
[1735130807141,6.2864,196.28,196.14,0.12549]
[1735130808080,6.2864,196.33,196.2,0.12549]
[1735130808245,6.2864,196.33,196.22,0.12549]
[1735130808937,6.2864,196.33,196.26,0.12549]
[1735130809767,14.18748995,196.39,196.26,0.12549]
[1735130810179,14.18748995,196.39,196.3,0.12549]
[1735130810769,6.4162,196.39,196.29,0.12549]
[1735130812049,6.4162,196.39,196.27,20.0]
[1735130812255,24.73167111,196.38,196.27,20.0]
[1735130812566,24.73167111,196.38,196.28,0.12549]
[1735130813574,23.776884,196.38,196.22,12.7408]
[1735130813751,23.776884,196.38,196.23,0.12549]
[1735130814147,23.776884,196.36,196.23,0.12549]
[1735130814373,23.776884,196.36,196.25,20.0]
[1735130815671,23.776884,196.36,196.26,0.12549]
[1735130816176,23.776884,196.36,196.23,0.12549]
[1735130816670,23.776884,196.36,196.25,0.12549]
[1735130816866,23.776884,196.37,196.25,0.12549]
[1735130818877,0.9549057,196.38,196.25,0.12549]
[1735130819052,23.776884,196.38,196.27,0.12549]
[1735130819255,6.4162,196.39,196.29,0.12549]
[1735130820181,6.4162,196.44,196.31,20.12549]
[1735130820850,0.95459526,196.43,196.31,20.12549]
[1735130821483,20.0,196.41,196.24,12.7388]